bitfinex/quotes_BTCUSD_20240828
["timestamp","ask_amount","ask_price","bid_price","bid_amount"]
[1724806994319,0.00589871,59222.0,59219.0,0.014]
[1724806994599,0.168865,59219.0,59216.0,0.29649738]
[1724806994805,0.168861,59220.0,59219.0,0.014]
[1724806995016,0.506584,59220.0,59219.0,0.014]
[1724806995230,0.844307,59220.0,59219.0,0.014]
[1724806995435,0.506584,59220.0,59219.0,0.014]
[1724806995638,0.16887,59217.0,59216.0,0.29649738]
[1724806996041,0.168867,59219.0,59216.0,0.29649738]
[1724806996228,0.168867,59218.0,59216.0,0.29649738]
[1724806996460,0.168864,59220.0,59216.0,0.29649738]
[1724806996737,0.168865,59219.0,59216.0,0.29649738]
[1724806997157,0.337719,59221.0,59216.0,0.29649738]
[1724806997333,0.33773,59219.0,59216.0,0.29649738]
[1724806997534,0.16887,59217.0,59211.0,0.1346]
[1724806997737,0.168866,59219.0,59216.0,0.011]
[1724806997890,0.168868,59218.0,59212.0,0.26846077]
[1724806998234,0.168869,59218.0,59216.0,0.012]
[1724806998796,0.16887,59217.0,59216.0,0.012]
[1724806999003,0.168861,59221.0,59216.0,0.012]
[1724806999198,0.17475471,59222.0,59216.0,0.30849738]
[1724806999400,0.168868,59218.0,59216.0,0.30849738]
[1724806999593,0.168863,59220.0,59216.0,0.30849738]
[1724806999796,0.00336754,59221.0,59216.0,0.30849738]
[1724807000066,0.168873,59216.0,59212.0,0.26846077]
[1724807000280,0.005,59218.0,59212.0,0.1]
[1724807000459,0.005,59218.0,59216.0,0.014]
[1724807000460,0.337745,59217.0,59216.0,0.014]
[1724807000658,0.337745,59217.0,59211.0,0.1]
[1724807000834,0.168876,59215.0,59211.0,0.1]
[1724807001055,0.342745,59217.0,59211.0,0.1]
[1724807001231,0.168876,59215.0,59211.0,0.1]
[1724807001439,0.168879,59214.0,59211.0,0.1]
[1724807002121,0.005,59213.0,59210.0,0.29649738]
[1724807002338,0.168909,59204.0,59201.0,0.42142826]
[1724807002535,0.168909,59204.0,59197.0,0.29649738]
[1724807002744,0.005,59207.0,59197.0,0.46495815]
[1724807002945,0.1148,59204.0,59197.0,0.29649738]
[1724807003148,0.12316754,59204.0,59197.0,0.29649738]
[1724807003366,0.005,59207.0,59203.0,0.29649738]
[1724807003571,0.005,59213.0,59203.0,0.57485815]
[1724807003780,0.168883,59213.0,59211.0,0.014]
[1724807003979,0.844422,59212.0,59211.0,0.014]
[1724807004105,0.506653,59212.0,59211.0,0.014]
[1724807004313,0.168897,59208.0,59204.0,0.43819738]
[1724807004894,0.168893,59210.0,59204.0,0.43819738]
[1724807005314,0.168895,59209.0,59204.0,0.43819738]
[1724807006119,0.168891,59210.0,59204.0,0.43819738]
[1724807006323,0.00589871,59222.0,59206.0,0.1373]
[1724807006552,0.00589871,59222.0,59219.0,0.1373]
[1724807006553,0.00089871,59222.0,59219.0,0.1373]
[1724807007386,0.00089871,59222.0,59219.0,0.245]
[1724807007560,0.00189871,59222.0,59220.0,0.16846077]
[1724807007761,0.00089871,59222.0,59220.0,0.16846077]
[1724807009271,0.00089871,59222.0,59221.0,0.89057963]
[1724807009462,0.00089871,59222.0,59221.0,1.0590404]
[1724807009800,0.50540786,59236.0,59222.0,0.1355]
[1724807010017,0.50540786,59236.0,59233.0,0.36983902]
[1724807010216,0.337642,59235.0,59226.0,0.36983902]
[1724807010416,0.16883,59231.0,59227.0,0.26846077]
[1724807010617,0.168831,59231.0,59227.0,0.26846077]
[1724807010874,0.337661,59231.0,59227.0,0.1]
[1724807011083,0.337667,59230.0,59223.0,0.65170304]
[1724807011292,0.1218,59229.0,59223.0,0.65170304]
[1724807011497,0.50655,59224.0,59223.0,0.65170304]
[1724807011750,0.005,59222.0,59213.0,0.17526]
[1724807011957,0.168878,59215.0,59213.0,0.17526]
[1724807012166,0.168876,59215.0,59213.0,0.03386]
[1724807012380,0.005,59215.0,59210.0,0.03386]
[1724807012583,0.005,59215.0,59205.0,0.36983902]
[1724807012584,0.337771,59212.0,59205.0,0.36983902]
[1724807012799,0.168891,59210.0,59206.0,0.002]
[1724807013001,0.005,59215.0,59205.0,0.53829979]
[1724807013203,0.005,59215.0,59206.0,0.00337766]
[1724807013425,0.168881,59214.0,59206.0,0.00337766]
[1724807013667,0.005,59215.0,59210.0,0.014]
[1724807013894,0.005,59215.0,59207.0,0.002]
[1724807013895,0.337764,59213.0,59207.0,0.002]
[1724807014095,0.168887,59211.0,59207.0,0.002]
[1724807014297,0.337758,59214.0,59206.0,0.014]
[1724807014503,0.337764,59213.0,59205.0,0.53829979]
[1724807014716,0.168888,59211.0,59206.0,0.014]
[1724807014925,0.342754,59215.0,59206.0,0.014]
[1724807015339,0.168884,59213.0,59206.0,0.014]
[1724807015551,0.168884,59213.0,59206.0,0.11737766]
[1724807016009,0.168884,59213.0,59206.0,0.10337766]
[1724807016443,0.168884,59213.0,59207.0,0.014]
[1724807016663,0.168884,59213.0,59206.0,0.10337766]
[1724807016866,0.168885,59212.0,59206.0,0.1]
[1724807017091,0.342754,59215.0,59206.0,0.014]
[1724807017305,0.342754,59215.0,59205.0,0.53911679]
[1724807017306,0.168883,59213.0,59205.0,0.53911679]
[1724807017475,0.168883,59213.0,59207.0,0.014]
[1724807017722,0.25019871,59220.0,59207.0,0.014]
[1724807017723,0.511688,59208.0,59207.0,0.014]
[1724807017945,0.511704,59206.0,59205.0,0.002817]
[1724807018156,0.849507,59206.0,59205.0,0.002817]
[1724807019749,0.849507,59206.0,59205.0,0.014817]
[1724807019976,0.849507,59206.0,59205.0,0.016817]
[1724807020197,0.849507,59206.0,59205.0,0.014817]
[1724807020198,1.32971,59206.0,59205.0,0.014817]
[1724807020668,1.32971,59206.0,59205.0,0.016817]
[1724807020891,1.32971,59206.0,59205.0,0.014817]
[1724807022713,1.94587377,59206.0,59205.0,0.014817]
[1724807022922,2.40667677,59206.0,59205.0,0.014817]
[1724807023127,2.06887377,59206.0,59205.0,0.014817]
[1724807023546,2.41666755,59206.0,59205.0,0.014817]
[1724807024002,2.41666755,59206.0,59205.0,0.000817]
[1724807024376,2.41966755,59206.0,59205.0,0.000817]
[1724807024881,0.005,59198.0,59197.0,0.000817]
[1724807025075,1.97468077,59198.0,59197.0,0.000817]
[1724807025282,2.31252977,59198.0,59197.0,0.000817]
[1724807025476,2.41252977,59198.0,59197.0,0.000817]
[1724807025756,2.41252977,59198.0,59184.0,0.000938]
[1724807025757,1.636553,59185.0,59184.0,0.000938]
[1724807026106,1.94601377,59185.0,59184.0,0.000938]
[1724807026300,2.30693677,59185.0,59184.0,0.000938]
[1724807026509,2.40693677,59185.0,59184.0,0.000938]
[1724807026830,2.06901377,59185.0,59184.0,0.000938]
[1724807027281,2.07401377,59185.0,59184.0,0.001938]
[1724807027586,2.07401377,59185.0,59184.0,0.000938]
[1724807027786,2.07901377,59185.0,59184.0,0.001938]
[1724807028647,1.44963,59185.0,59184.0,0.001938]
[1724807029292,1.61809077,59185.0,59184.0,0.001938]
[1724807029911,1.96901377,59185.0,59184.0,0.000938]
[1724807030110,1.97701377,59185.0,59184.0,0.000938]
[1724807030430,1.96901377,59185.0,59184.0,0.000938]
[1724807030624,1.97601377,59185.0,59184.0,0.000938]
[1724807031055,1.96901377,59185.0,59184.0,0.000938]
[1724807031453,1.97501377,59185.0,59184.0,0.000938]
[1724807032035,2.07501377,59185.0,59184.0,0.000938]
[1724807032642,2.06901377,59185.0,59184.0,0.000938]
[1724807033098,2.07601377,59185.0,59184.0,0.000938]
[1724807033668,2.24456541,59185.0,59184.0,0.000938]
[1724807034735,2.07601377,59185.0,59184.0,0.000938]
[1724807035315,1.73809077,59185.0,59184.0,0.000938]
[1724807035842,2.07601377,59185.0,59184.0,0.000938]
[1724807036900,2.06901377,59185.0,59184.0,0.000938]
[1724807037121,2.07601377,59185.0,59184.0,0.000938]
[1724807037316,2.06901377,59185.0,59184.0,0.000938]
[1724807037746,2.07501377,59185.0,59184.0,0.000938]
[1724807038172,2.06901377,59185.0,59184.0,0.000938]
[1724807038560,2.07501377,59185.0,59184.0,0.000938]
[1724807038742,2.06901377,59185.0,59184.0,0.000938]
[1724807040089,2.11099964,59185.0,59184.0,0.000938]
[1724807042093,2.44892264,59185.0,59184.0,0.000938]
[1724807042291,2.12123039,59185.0,59184.0,0.000938]
[1724807042703,2.08524452,59185.0,59184.0,0.000938]
[1724807043056,2.07501377,59185.0,59184.0,0.000938]
[1724807043421,2.06901377,59185.0,59184.0,0.000938]
[1724807043612,2.08001377,59185.0,59184.0,0.000938]
[1724807043929,2.10648967,59185.0,59184.0,0.000938]
[1724807045465,0.0374759,59185.0,59184.0,0.109538]
[1724807045716,0.0374759,59185.0,59184.0,0.236938]
[1724807045717,0.522884,59185.0,59184.0,0.236938]
[1724807045948,0.184961,59185.0,59184.0,0.236938]
[1724807046415,0.849807,59185.0,59184.0,0.128338]
[1724807046628,1.35619077,59185.0,59184.0,0.000938]
[1724807046841,1.49509077,59185.0,59184.0,0.000938]
[1724807047313,1.83301377,59185.0,59184.0,0.000938]
[1724807047469,1.84501377,59185.0,59184.0,0.000938]
[1724807047872,1.84601377,59185.0,59184.0,0.001938]
[1724807048088,1.84601377,59185.0,59184.0,0.000938]
[1724807048089,1.84501377,59185.0,59184.0,0.000938]
[1724807050236,1.84801377,59185.0,59184.0,0.000938]
[1724807050437,1.84501377,59185.0,59184.0,0.000938]
[1724807050821,1.84501377,59185.0,59184.0,0.001938]
[1724807051564,1.71711377,59185.0,59184.0,0.001938]
[1724807051752,1.35619077,59185.0,59184.0,0.001938]
[1724807053312,1.38266499,59185.0,59184.0,0.001938]
[1724807056784,1.04474199,59185.0,59184.0,0.137438]
[1724807056955,1.01826777,59185.0,59184.0,0.137438]
[1724807057156,1.01326777,59185.0,59184.0,0.137438]
[1724807057357,1.35619077,59185.0,59184.0,0.137438]
[1724807059613,1.35119077,59185.0,59184.0,0.137438]
[1724807059852,1.18773,59185.0,59184.0,0.137438]
[1724807060086,0.173951,59189.0,59184.0,0.54483635]
[1724807060323,0.005,59196.0,59190.0,0.1341]
[1724807060566,0.00089981,59198.0,59195.0,0.2449]
[1724807060792,0.337771,59212.0,59194.0,0.29659835]
[1724807060793,0.50540786,59221.0,59196.0,0.41336077]
[1724807061030,0.50540786,59221.0,59194.0,0.29659835]
[1724807061031,0.50540786,59221.0,59219.0,0.51419835]
[1724807061472,0.168859,59221.0,59219.0,0.51419835]
[1724807061944,0.16975971,59220.0,59219.0,0.2176]
[1724807062390,0.51248271,59220.0,59219.0,0.2176]
[1724807063065,0.52648271,59220.0,59219.0,0.2176]
[1724807063277,0.005,59213.0,59212.0,0.1387]
[1724807063501,0.511644,59213.0,59212.0,0.1387]
[1724807064414,0.337729,59219.0,59212.0,0.1387]
[1724807064621,0.00089871,59220.0,59216.0,0.1365]
[1724807065035,0.51161,59217.0,59216.0,0.1365]
[1724807065247,0.84935,59217.0,59216.0,0.1365]
[1724807066112,0.506635,59214.0,59213.0,0.1385]
[1724807066348,0.849392,59214.0,59213.0,0.1385]
[1724807066884,0.511635,59214.0,59213.0,0.1385]
[1724807067299,0.337763,59213.0,59202.0,0.2358]
[1724807067502,0.168888,59211.0,59203.0,0.29146077]
[1724807068293,0.342763,59213.0,59203.0,0.29146077]
[1724807068566,0.005,59209.0,59203.0,0.1]
[1724807068821,0.005,59209.0,59204.0,0.1335]
[1724807069028,0.168874,59216.0,59206.0,0.1335]
[1724807069237,0.173877,59215.0,59206.0,0.1335]
[1724807069436,0.001,59211.0,59206.0,0.1335]
[1724807069637,0.001,59211.0,59205.0,0.02637773]
[1724807069638,0.001,59211.0,59209.0,0.1335]
[1724807069844,0.005,59219.0,59210.0,0.00337733]
[1724807069845,0.168869,59218.0,59210.0,0.00337733]
[1724807070019,0.168869,59218.0,59211.0,0.023]
[1724807070218,0.005,59219.0,59211.0,0.023]
[1724807070219,0.16887,59217.0,59211.0,0.023]
[1724807070393,0.168874,59216.0,59210.0,0.023]
[1724807070617,0.001,59211.0,59210.0,0.023]
[1724807070819,0.005,59219.0,59210.0,0.023]
[1724807071017,0.16887,59217.0,59210.0,0.023]
[1724807071627,0.005,59219.0,59210.0,0.023]
[1724807071829,0.173866,59219.0,59211.0,0.1298]
[1724807072007,0.168871,59217.0,59212.0,0.023]
[1724807072209,0.337687,59227.0,59212.0,0.023]
[1724807072210,0.001,59218.0,59216.0,0.2387]
[1724807072455,0.00089871,59220.0,59217.0,0.15617702]
[1724807072859,0.168867,59218.0,59217.0,0.1298]
[1724807073080,0.001,59219.0,59217.0,0.1298]
[1724807073261,0.001,59219.0,59218.0,0.023]
[1724807073664,0.00089871,59220.0,59218.0,0.023]
[1724807075572,0.001,59219.0,59218.0,0.025]
[1724807076061,0.001,59219.0,59218.0,0.023]
[1724807076234,0.001,59219.0,59218.0,0.025]
[1724807076582,0.00189871,59220.0,59219.0,0.1348]
[1724807077546,0.506593,59219.0,59218.0,0.002]
[1724807077733,0.168864,59219.0,59218.0,0.002]
[1724807077927,0.506593,59219.0,59218.0,0.002]
[1724807078553,0.168867,59219.0,59216.0,0.1089]
[1724807078767,0.168868,59218.0,59216.0,0.1089]
[1724807079382,0.16887,59217.0,59216.0,0.1089]
[1724807079584,0.001,59219.0,59216.0,0.1089]
[1724807080021,0.168868,59218.0,59216.0,0.1089]
[1724807080502,0.169868,59218.0,59216.0,0.1109]
[1724807081084,0.001,59218.0,59216.0,0.1109]
[1724807081483,0.169869,59218.0,59216.0,0.1109]
[1724807082149,0.16887,59217.0,59216.0,0.002]
[1724807082359,0.85271754,59217.0,59216.0,0.002]
[1724807083315,0.168885,59212.0,59206.0,0.1265]
[1724807083520,0.168885,59212.0,59207.0,0.123]
[1724807084385,0.168886,59212.0,59207.0,0.023]
[1724807085134,0.168887,59211.0,59207.0,0.023]
[1724807085431,0.168887,59211.0,59207.0,0.025]
[1724807085639,0.511688,59208.0,59207.0,0.002]
[1724807085858,0.84948,59208.0,59207.0,0.002]
[1724807086240,0.005,59207.0,59198.0,0.85749497]
[1724807086452,0.168916,59201.0,59198.0,0.1399]
[1724807086656,0.173909,59204.0,59198.0,0.1399]
[1724807086829,0.005,59204.0,59198.0,0.43606671]
[1724807087034,0.173909,59204.0,59198.0,0.43606671]
[1724807088243,0.16891,59203.0,59198.0,0.43606671]
[1724807088417,0.005,59204.0,59198.0,0.43606671]
[1724807088621,0.001,59201.0,59198.0,0.43806671]
[1724807088975,0.16891,59203.0,59198.0,0.43606671]
[1724807089866,0.16891,59203.0,59198.0,0.43888471]
[1724807090050,0.16891,59203.0,59198.0,0.43688471]
[1724807090801,0.005,59204.0,59198.0,0.43688471]
[1724807091000,0.173909,59204.0,59198.0,0.43688471]
[1724807091362,0.001,59203.0,59198.0,0.43888471]
[1724807091569,0.173909,59204.0,59198.0,0.43688471]
[1724807091968,0.174909,59204.0,59198.0,0.43888471]
[1724807092168,0.174909,59204.0,59198.0,0.43688471]
[1724807092398,0.173909,59204.0,59198.0,0.43688471]
[1724807092622,0.001,59203.0,59198.0,0.43888471]
[1724807092773,0.001,59203.0,59198.0,0.43688471]
[1724807093173,0.001,59203.0,59198.0,0.43888471]
[1724807094455,0.006,59204.0,59198.0,0.43888471]
[1724807094456,0.005,59204.0,59198.0,0.43688471]
[1724807094660,0.173908,59204.0,59198.0,0.43688471]
[1724807094810,0.169911,59203.0,59198.0,0.43888471]
[1724807095414,0.168911,59203.0,59198.0,0.43688471]
[1724807095869,0.174907,59204.0,59198.0,0.43888471]
[1724807096840,0.173907,59204.0,59198.0,0.43688471]
[1724807097401,0.342758,59214.0,59200.0,0.1247]
[1724807097605,0.342758,59214.0,59206.0,0.1247]
[1724807097606,0.005,59214.0,59206.0,0.1247]
[1724807097867,0.337763,59213.0,59206.0,0.1247]
[1724807098073,0.001,59203.0,59202.0,0.1247]
[1724807098351,0.168903,59206.0,59202.0,0.023]
[1724807098526,0.168903,59206.0,59200.0,0.002]
[1724807098903,0.005,59206.0,59199.0,0.31916671]
[1724807099105,0.005,59209.0,59199.0,0.48762748]
[1724807099215,0.001,59203.0,59202.0,0.002]
[1724807099641,0.168897,59208.0,59201.0,0.023]
[1724807099853,0.168897,59208.0,59199.0,0.46462748]
[1724807099854,0.001,59206.0,59200.0,0.025]
[1724807100058,0.001,59206.0,59201.0,0.00337793]
[1724807100275,0.001,59206.0,59202.0,0.023]
[1724807101136,0.1689,59207.0,59202.0,0.023]
[1724807101347,0.001,59203.0,59202.0,0.025]
[1724807101813,0.168897,59208.0,59202.0,0.023]
[1724807102037,0.005,59209.0,59201.0,0.023]
[1724807102261,0.00089981,59203.0,59202.0,0.002]
[1724807102489,0.00089981,59203.0,59201.0,0.023]
[1724807102970,0.00189981,59203.0,59202.0,0.002]
[1724807103198,0.00189981,59203.0,59202.0,0.28943871]
[1724807103411,0.00189981,59203.0,59202.0,0.40993871]
[1724807104322,0.00189981,59203.0,59202.0,0.40656077]
[1724807104554,0.00189981,59203.0,59202.0,0.40456077]
[1724807104775,0.00089981,59203.0,59202.0,0.40456077]
[1724807105238,0.00189981,59203.0,59202.0,0.40656077]
[1724807105450,0.00189981,59203.0,59202.0,0.456848]
[1724807106360,0.50862981,59203.0,59202.0,0.37670109]
[1724807106576,0.00189981,59203.0,59202.0,0.4527208]
[1724807107021,0.00189981,59203.0,59202.0,0.37670109]
[1724807107471,0.00089981,59203.0,59202.0,0.37470109]
[1724807107698,0.00089981,59203.0,59202.0,0.4507239]
[1724807107926,0.00189981,59203.0,59202.0,0.4527239]
[1724807109487,0.00189981,59203.0,59202.0,0.07802281]
[1724807110749,0.00189981,59203.0,59202.0,0.002]
[1724807110959,1.23981058,59203.0,59202.0,0.002]
[1724807111168,2.00517757,59203.0,59202.0,0.002]
[1724807111377,0.849607,59199.0,59198.0,0.000818]
[1724807111577,0.506884,59185.0,59184.0,0.000938]
[1724807111688,1.57219077,59185.0,59184.0,0.000938]
[1724807112547,1.065807,59185.0,59184.0,0.000938]
[1724807112743,0.384961,59185.0,59184.0,0.000938]
[1724807112956,0.389961,59185.0,59184.0,0.000938]
[1724807113158,0.727884,59185.0,59184.0,0.000938]
[1724807113548,1.065807,59185.0,59184.0,0.000938]
[1724807113783,1.40373,59185.0,59184.0,0.000938]
[1724807113986,1.57219077,59185.0,59184.0,0.000938]
[1724807115063,1.57319077,59185.0,59184.0,0.000938]
[1724807115261,1.57219077,59185.0,59184.0,0.000938]
[1724807115691,1.91011377,59185.0,59184.0,0.000938]
[1724807117615,1.91111377,59185.0,59184.0,0.000938]
[1724807118025,1.57219077,59185.0,59184.0,0.000938]
[1724807118229,1.065807,59185.0,59184.0,0.000938]
[1724807118470,1.069807,59185.0,59184.0,0.000938]
[1724807118669,1.40373,59185.0,59184.0,0.000938]
[1724807119077,1.40773,59185.0,59184.0,0.000938]
[1724807119280,1.40373,59185.0,59184.0,0.000938]
[1724807120878,0.173946,59191.0,59184.0,0.000938]
[1724807121079,0.337869,59195.0,59190.0,0.29616671]
[1724807121286,0.16892,59200.0,59194.0,0.29616671]
[1724807121483,0.16981081,59203.0,59199.0,0.29616671]
[1724807121696,0.00089981,59203.0,59200.0,0.29286077]
[1724807121914,0.00089981,59203.0,59201.0,0.023]
[1724807122153,0.00089981,59203.0,59202.0,0.26653847]
[1724807122339,0.00089981,59203.0,59202.0,0.28953847]
[1724807122568,0.00089981,59203.0,59200.0,0.1244]
[1724807122767,0.168916,59201.0,59200.0,0.1244]
[1724807122964,0.16981081,59203.0,59200.0,0.1244]
[1724807123165,0.00089981,59203.0,59200.0,0.1244]
[1724807123533,0.16981081,59203.0,59200.0,0.1244]
[1724807123739,0.337832,59201.0,59199.0,0.29616671]
[1724807123943,0.168913,59202.0,59201.0,0.003]
[1724807124387,0.00089981,59203.0,59199.0,0.29616671]
[1724807124747,0.84958,59201.0,59200.0,0.005]
[1724807124952,0.00189981,59203.0,59191.0,0.1003]
[1724807124953,0.168934,59195.0,59191.0,0.1003]
[1724807125157,0.00189981,59203.0,59189.0,0.42142826]
[1724807125158,0.168947,59190.0,59189.0,0.42142826]
[1724807125358,0.506841,59190.0,59189.0,0.42142826]
[1724807125914,0.168947,59190.0,59189.0,0.42142826]
[1724807126119,0.337894,59190.0,59189.0,0.42142826]
[1724807126336,0.005,59189.0,59183.0,0.65170304]
[1724807126710,0.005,59197.0,59188.0,0.29616671]
[1724807126820,0.00089981,59201.0,59199.0,0.002]
[1724807127023,0.00089981,59201.0,59197.0,0.29616671]
[1724807127223,0.00089981,59201.0,59197.0,0.29954509]
[1724807127666,0.00089981,59201.0,59189.0,0.213]
[1724807127826,0.005,59198.0,59191.0,0.29616671]
[1724807128023,0.00089981,59201.0,59192.0,0.1]
[1724807128226,0.005,59200.0,59193.0,0.0263784]
[1724807128424,0.342842,59200.0,59193.0,0.0263784]
[1724807128624,0.168925,59198.0,59197.0,0.001]
[1724807129280,0.937523,59198.0,59197.0,0.001]
[1724807129479,1.275372,59198.0,59197.0,0.001]
[1724807129813,0.16895,59189.0,59183.0,0.1963]
[1724807130242,0.005,59191.0,59183.0,0.1963]
[1724807131019,0.168948,59190.0,59183.0,0.1963]
[1724807131179,0.168951,59189.0,59183.0,0.1963]
[1724807131584,0.01228538,59188.0,59186.0,0.54223575]
[1724807131827,0.001,59189.0,59187.0,0.023]
[1724807132030,0.001,59189.0,59188.0,0.00337864]
[1724807132261,0.001,59189.0,59188.0,0.02637864]
[1724807132458,0.001,59189.0,59188.0,0.023]
[1724807132669,0.001,59189.0,59188.0,0.02637867]
[1724807132884,0.001,59189.0,59188.0,0.19483944]
[1724807133042,0.16981681,59201.0,59188.0,0.40633944]
[1724807133207,0.168919,59200.0,59195.0,0.37039602]
[1724807133406,0.173919,59200.0,59195.0,0.37039602]
[1724807133824,0.005,59200.0,59189.0,0.16846077]
[1724807134052,0.005,59197.0,59190.0,0.023]
[1724807134498,0.005,59192.0,59185.0,0.65170304]
[1724807134737,0.005,59192.0,59186.0,0.023]
[1724807134938,0.168948,59190.0,59186.0,0.023]
[1724807135815,0.16895,59189.0,59186.0,0.023]
[1724807136297,0.16895,59189.0,59185.0,0.023]
[1724807136704,0.337891,59191.0,59185.0,0.023]
[1724807136861,0.168951,59189.0,59185.0,0.023]
[1724807137079,0.168946,59191.0,59185.0,0.023]
[1724807137286,0.005,59192.0,59185.0,0.023]
[1724807137494,0.001,59189.0,59186.0,0.002]
[1724807137666,0.005,59192.0,59185.0,0.023]
[1724807138053,0.168947,59190.0,59185.0,0.002]
[1724807138254,0.001,59189.0,59185.0,0.025]
[1724807138383,0.001,59189.0,59185.0,0.002]
[1724807138584,0.168958,59186.0,59185.0,0.002]
[1724807138805,0.506875,59186.0,59185.0,0.002]
[1724807139011,0.511875,59186.0,59185.0,0.002]
[1724807139220,0.168961,59185.0,59184.0,0.000938]
[1724807139548,0.85317454,59185.0,59184.0,0.000938]
[1724807140571,0.86534456,59185.0,59184.0,0.000938]
[1724807140792,0.18613102,59185.0,59184.0,0.000938]
[1724807140991,0.01717002,59185.0,59184.0,0.000938]
[1724807141295,0.18613102,59185.0,59184.0,0.000938]
[1724807141507,0.52505402,59185.0,59184.0,0.002938]
[1724807142040,1.06837702,59185.0,59184.0,0.002938]
[1724807142531,0.18713102,59185.0,59184.0,0.002938]
[1724807142683,0.52405402,59185.0,59184.0,0.000938]
[1724807142886,0.18613102,59185.0,59184.0,0.000938]
[1724807143105,0.52505402,59185.0,59184.0,0.002938]
[1724807143278,0.52505402,59185.0,59184.0,0.000938]
[1724807143481,0.86297702,59185.0,59184.0,0.000938]
[1724807143700,0.86297702,59185.0,59184.0,0.002938]
[1724807143701,1.31520002,59185.0,59184.0,0.002938]
[1724807144368,1.31320002,59185.0,59184.0,0.000938]
[1724807144690,1.91258379,59185.0,59184.0,0.002938]
[1724807144984,2.41491901,59185.0,59184.0,0.002938]
[1724807145110,2.01358379,59185.0,59184.0,0.002938]
[1724807145328,2.35150679,59185.0,59184.0,0.002938]
[1724807145536,2.01358379,59185.0,59184.0,0.002938]
[1724807146563,2.03905901,59185.0,59184.0,0.000938]
[1724807146767,2.04005901,59185.0,59184.0,0.002938]
[1724807147225,2.03905901,59185.0,59184.0,0.000938]
[1724807147469,2.01658379,59185.0,59184.0,0.000938]
[1724807149422,2.52305843,59185.0,59184.0,0.000938]
[1724807149631,2.18113543,59185.0,59184.0,0.000938]
[1724807150101,2.19097139,59185.0,59184.0,0.000938]
[1724807150311,2.02641975,59185.0,59184.0,0.000938]
[1724807150525,2.01258379,59185.0,59184.0,0.000938]
[1724807150949,2.01658379,59185.0,59184.0,0.000938]
[1724807151431,2.02958379,59185.0,59184.0,0.000938]
[1724807152675,2.01258379,59185.0,59184.0,0.000938]
[1724807153166,2.19013543,59185.0,59184.0,0.000938]
[1724807153833,2.03058379,59185.0,59184.0,0.000938]
[1724807155844,2.01258379,59185.0,59184.0,0.000938]
[1724807156305,2.02058379,59185.0,59184.0,0.000938]
[1724807156777,2.04705946,59185.0,59184.0,0.000938]
[1724807157229,2.02058379,59185.0,59184.0,0.000938]
[1724807158737,2.18913543,59185.0,59184.0,0.000938]
[1724807159487,2.02058379,59185.0,59184.0,0.000938]
[1724807163023,2.35850679,59185.0,59184.0,0.000938]
[1724807163169,2.36350679,59185.0,59184.0,0.000938]
[1724807163374,2.72442979,59185.0,59184.0,0.000938]
[1724807163755,2.38650679,59185.0,59184.0,0.000938]
[1724807163871,2.02058379,59185.0,59184.0,0.000938]
[1724807165107,2.01258379,59185.0,59184.0,0.000938]
[1724807165310,1.67466079,59185.0,59184.0,0.000938]
[1724807165511,1.68866079,59185.0,59184.0,0.000938]
[1724807166314,1.67466079,59185.0,59184.0,0.000938]
[1724807166516,2.52405843,59185.0,59184.0,0.000938]
[1724807166671,2.54705843,59185.0,59184.0,0.000938]
[1724807166865,2.52705843,59185.0,59184.0,0.000938]
[1724807168171,2.18913543,59185.0,59184.0,0.000938]
[1724807168531,2.18113543,59185.0,59184.0,0.000938]
[1724807168812,2.53305843,59185.0,59184.0,0.000938]
[1724807169028,2.20013543,59185.0,59184.0,0.000938]
[1724807169571,2.52405843,59185.0,59184.0,0.000938]
[1724807170158,2.53505843,59185.0,59184.0,0.000938]
[1724807170356,2.52405843,59185.0,59184.0,0.000938]
[1724807171836,2.53805843,59185.0,59184.0,0.000938]
[1724807172033,2.52405843,59185.0,59184.0,0.000938]
[1724807172433,2.53805843,59185.0,59184.0,0.000938]
[1724807172700,2.52405843,59185.0,59184.0,0.000938]
[1724807173077,2.53805843,59185.0,59184.0,0.000938]
[1724807173444,2.55051534,59185.0,59184.0,0.000938]
[1724807173665,2.59099253,59185.0,59184.0,0.000938]
[1724807177353,2.56451534,59185.0,59184.0,0.000938]
[1724807178750,2.55051534,59185.0,59184.0,0.000938]
[1724807179067,2.56451534,59185.0,59184.0,0.000938]
[1724807180388,2.60055665,59185.0,59184.0,0.000938]
[1724807180815,2.61455665,59185.0,59184.0,0.000938]
[1724807181367,2.56451534,59185.0,59184.0,0.000938]
[1724807182413,2.63984642,59185.0,59184.0,0.000938]
[1724807183375,2.56451534,59185.0,59184.0,0.000938]
[1724807183534,2.61399227,59185.0,59184.0,0.000938]
[1724807183710,2.58751534,59185.0,59184.0,0.000938]
[1724807184662,2.71325898,59185.0,59184.0,0.000938]
[1724807184865,2.69925898,59185.0,59184.0,0.000938]
[1724807185064,2.67625898,59185.0,59184.0,0.000938]
[1724807185367,2.56451534,59185.0,59184.0,0.000938]
[1724807188506,2.71540752,59185.0,59184.0,0.000938]
[1724807189348,2.56451534,59185.0,59184.0,0.000938]
[1724807191510,2.73426904,59185.0,59184.0,0.000938]
[1724807195580,2.56451534,59185.0,59184.0,0.000938]
[1724807196954,2.59099256,59185.0,59184.0,0.000938]
[1724807198479,2.56451534,59185.0,59184.0,0.000938]
[1724807205179,2.92543834,59185.0,59184.0,0.000938]
[1724807205547,2.58751534,59185.0,59184.0,0.000938]
[1724807206269,2.61399254,59185.0,59184.0,0.000938]
[1724807207825,2.95191554,59185.0,59184.0,0.000938]
[1724807208037,2.61399254,59185.0,59184.0,0.000938]
[1724807208550,2.58751534,59185.0,59184.0,0.000938]
[1724807210499,2.56451534,59185.0,59184.0,0.000938]